lending/lending_fUSD_20240410
["ID","MTS","AMOUNT","RATE_DAILY","PERIOD"]
[322098912,1712766107186,1035.09,0.00018887,2]
[322098913,1712766135443,2044.3,0.00018845,2]
[322098914,1712766297620,2334.73,0.00018996,2]
[322098915,1712766411078,-1131.93114058,0.00019053,2]
[322098916,1712766411103,-150.0,0.00019054,2]
[322098917,1712766411128,-183.47,0.00019319,2]
[322098918,1712766411154,-150.0,0.00019498,2]
[322098919,1712766411177,-864.21551973,0.000195,2]
[322098920,1712766419996,520.38333969,0.00019499,2]
[322098953,1712766484250,281.08,0.0001888,2]
[322098954,1712766557396,165.12,0.00016962,2]
[322098958,1712766621417,1000.0,0.00018862,2]
[322098986,1712766632706,-163.78,0.00019183,2]
[322098988,1712766632715,-165.12,0.00019226,2]
[322098990,1712766632724,-531.91264923,0.00019497,2]
[322098992,1712766632734,-1392.89773046,0.00019498,2]
[322098995,1712766632746,-387.73908297,0.00019498,2]
[322098997,1712766632755,-3731.78546844,0.00019499,2]
[322098998,1712766632764,-300.0,0.00019508,2]
[322099000,1712766632773,-150.0,0.00019508,2]
[322099002,1712766632783,-150.0,0.00019508,2]
[322099004,1712766632792,-581.05084839,0.00019509,2]
[322099011,1712766632850,-663.28899686,0.00019509,2]
[322099014,1712766632871,-3215.01485475,0.00019509,2]
[322099016,1712766632881,-150.99,0.00019509,2]
[322099018,1712766632892,-29618.77122627,0.00019555,2]
[322099021,1712766632904,-312.98457354,0.00019555,2]
[322099023,1712766632916,-1731.12000508,0.00019555,2]
[322099025,1712766632925,-639.0851,0.00019579,2]
[322099027,1712766632935,-377.84848129,0.00019579,2]
[322099031,1712766638351,-2273.77681871,0.00019579,2]
[322099032,1712766638360,-723.42,0.00019589,3]
[322099033,1712766638371,-3000.0,0.00019597,2]
[322099034,1712766638381,-1029.99517424,0.00019598,2]
[322099035,1712766638390,-224.99,0.00019598,3]
[322099036,1712766638400,-150.99,0.00019598,2]
[322099037,1712766638411,-39959.6783,0.00019599,2]
[322099038,1712766638422,-1238.069,0.00019599,2]
[322099039,1712766638433,-245000.0,0.00019599,2]
[322099040,1712766638443,-310.30465082,0.00019599,2]
[322099041,1712766638453,-4252.16880811,0.00019655,2]
[322099042,1712766638463,-299.44141914,0.00019678,2]
[322099043,1712766638472,-99624.7966,0.00019679,2]
[322099044,1712766638483,-100000.0,0.00019699,2]
[322099045,1712766638492,-31662.87580485,0.00019704,2]
[322099046,1712766638507,-500.0,0.00019767,2]
[322099047,1712766638517,-4252.16880811,0.0001981,2]
[322099048,1712766638527,-31662.87580485,0.00019854,2]
[322099049,1712766638537,-4252.16880811,0.00019966,2]
[322099050,1712766638547,-260.52629873,0.0002,2]
[322099051,1712766638556,-640.46092048,0.0002,2]
[322099052,1712766638566,-31662.87580485,0.00020003,2]
[322099053,1712766638576,-310.30465081,0.00020033,2]
[322099054,1712766638586,-4252.16880811,0.00020122,2]
[322099055,1712766638596,-31662.87580485,0.00020153,2]
[322099056,1712766638605,-210.829974,0.00020274,2]
[322099057,1712766638615,-4252.16880811,0.00020277,2]
[322099058,1712766638625,-31662.87580485,0.00020302,2]
[322099059,1712766638637,-4252.16880811,0.00020433,2]
[322099060,1712766638646,-31662.87580485,0.00020452,2]
[322099061,1712766638657,-310.30465081,0.00020466,2]
[322099062,1712766638668,-12568.45381489,0.000205,2]
[322099063,1712766638678,-549.0,0.00020547,2]
[322099064,1712766638689,-537.0,0.00020547,2]
[322099065,1712766638698,-557.18,0.00020548,2]
[322099066,1712766638707,-150.0,0.00020551,2]
[322099067,1712766638717,-4252.16880811,0.00020589,2]
[322099068,1712766638726,-31662.87580485,0.00020601,2]
[322099069,1712766638736,-150.0,0.00020646,2]
[322099070,1712766638745,-1587.23104459,0.000207,2]
[322099071,1712766638755,-1587.23104459,0.000207,2]
[322099072,1712766638764,-1587.23104459,0.000207,2]
[322099073,1712766638774,-1587.23104459,0.000207,2]
[322099074,1712766638784,-1587.23104459,0.000207,2]
[322099075,1712766638793,-1587.23104459,0.000207,2]
[322099076,1712766638803,-1587.23104459,0.000207,2]
[322099077,1712766638812,-1587.23104459,0.000207,2]
[322099078,1712766638822,-1587.23104459,0.000207,2]
[322099079,1712766638831,-1587.23104459,0.000207,2]
[322099080,1712766638841,-1587.23104459,0.000207,2]
[322099081,1712766638850,-1587.23104459,0.000207,2]
[322099082,1712766638860,-1587.23104459,0.000207,2]
[322099083,1712766638870,-1587.23104459,0.000207,2]
[322099084,1712766638879,-1587.23104459,0.000207,2]
[322099085,1712766638889,-1587.23104459,0.000207,2]
[322099086,1712766638899,-1587.23104459,0.000207,2]
[322099087,1712766638908,-1587.23104459,0.000207,2]
[322099088,1712766638917,-1587.23104459,0.000207,2]
[322099089,1712766638927,-1587.23104459,0.000207,2]
[322099090,1712766638937,-1587.23104459,0.000207,2]
[322099091,1712766638946,-1587.23104459,0.000207,2]
[322099092,1712766638956,-1587.23104459,0.000207,2]
[322099093,1712766638965,-1587.23104459,0.000207,2]
[322099094,1712766638975,-1587.23104459,0.000207,2]
[322099095,1712766638985,-1587.23104459,0.000207,2]
[322099096,1712766638995,-1587.23104459,0.000207,2]
[322099097,1712766639004,-1587.23104459,0.000207,2]
[322099098,1712766639014,-1587.23104459,0.000207,2]
[322099099,1712766639025,-1587.23104459,0.000207,2]
[322099100,1712766639035,-1587.23104459,0.000207,2]
[322099101,1712766639044,-1587.23104459,0.000207,2]
[322099102,1712766639054,-1587.23104459,0.000207,2]
[322099103,1712766639064,-1587.23104459,0.000207,2]
[322099104,1712766639074,-1587.23104459,0.000207,2]
[322099105,1712766639084,-1587.23104459,0.000207,2]
[322099106,1712766639093,-1587.23104459,0.000207,2]
[322099107,1712766639103,-1587.23104459,0.000207,2]
[322099108,1712766639112,-1587.23104459,0.000207,2]
[322099109,1712766639122,-1587.23104459,0.000207,2]
[322099110,1712766639133,-1587.23104459,0.000207,2]
[322099111,1712766639142,-1587.23104459,0.000207,2]
[322099112,1712766639151,-1587.23104459,0.000207,2]
[322099113,1712766639161,-1587.23104459,0.000207,2]
[322099114,1712766639170,-1587.23104459,0.000207,2]
[322099115,1712766639179,-1587.23104459,0.000207,2]
[322099116,1712766639189,-1587.23104459,0.000207,2]
[322099117,1712766639199,-1587.23104459,0.000207,2]
[322099118,1712766639211,-1587.23104459,0.000207,2]
[322099119,1712766639220,-1587.23104459,0.000207,2]
[322099120,1712766639229,-4252.16880811,0.00020744,2]
[322099121,1712766639239,-31662.87580485,0.00020751,2]
[322099122,1712766639248,-180.00657047,0.000209,2]
[322099123,1712766639258,-145761.21023237,0.000209,2]
[322099124,1712766639268,-350.12193298,0.000209,2]
[322099125,1712766639277,-152.59899876,0.000209,2]
[322099126,1712766639287,-4252.16880811,0.000209,2]
[322099127,1712766639296,-31662.87580485,0.000209,2]
[322099128,1712766639305,-310.30465081,0.000209,2]
[322099129,1712766639314,-185.68441501,0.000209,2]
[322099130,1712766639323,-155.62920748,0.00020998,2]
[322099131,1712766639333,-155.92538713,0.00020998,2]
[322099132,1712766639342,-155.68969577,0.00020998,2]
[322099133,1712766639351,-205.23806172,0.00020998,2]
[322099134,1712766639361,-155.0,0.00020998,2]
[322099135,1712766639370,-246.22571989,0.00020999,2]
[322099136,1712766639381,-198.55405159,0.00021,2]
[322099137,1712766639390,-6901140.49048474,0.00021,2]
[322099138,1712766639399,-714.96210186,0.00021,2]
[322099139,1712766639407,-155.0,0.00021,2]
[322099140,1712766639417,-730.67,0.00021,2]
[322099141,1712766639427,-481.4,0.00021,2]
[322099142,1712766639437,-7159305.50039805,0.00021,2]
[322099143,1712766639450,-1347.28000024,0.00021,2]
[322099144,1712766639653,-26115.61017936,0.00021,2]
[322099157,1712766640302,-329.02553384,0.00021,2]
[322099161,1712766640529,-410.59404827,0.00021,2]
[322099186,1712766643370,-145570.21057507,0.00021,2]
[322099187,1712766643647,-10460.38663134,0.00021,2]
[322099202,1712766646494,-2393.54262602,0.00021,2]
[322099203,1712766646507,-8630.63505587,0.00021,2]
[322099204,1712766646575,-275.18835053,0.00021,2]
[322099209,1712766784196,150.5,0.0002099,15]
[322099210,1712766784703,226.94,0.0002098,15]
[322099211,1712767232841,176.31,0.00017752,2]
[322099212,1712767241988,-164.17733306,0.00019709,2]
[322099213,1712767242010,-1000.0,0.0001971,2]
[322099214,1712767242031,-1780.63681343,0.00019736,2]
[322099215,1712767242221,-250.0,0.00019737,2]
[322099216,1712767242246,-324.44,0.0001979,2]
[322099217,1712767242268,-3100.95049862,0.0001983,2]
[322099218,1712767242290,-246.22571989,0.00019853,2]
[322099219,1712767242311,-260.52629873,0.0002,2]
[322099220,1712767356898,-1964.45,0.00019609,2]
[322099221,1712767356921,-206.00107044,0.00019834,2]
[322099222,1712767356941,-362.49031828,0.00019835,2]
[322099223,1712767356962,-447.23282103,0.00019836,2]
[322099224,1712767356982,-279.94,0.00019837,2]
[322099225,1712767357002,-200.0,0.00019883,2]
[322099226,1712767357024,-260.52629873,0.0002,2]
[322099227,1712767357045,-640.46092048,0.0002,2]
[322099239,1712767707170,167.49,0.00017684,2]
[322099277,1712767832426,-162.22,0.00019622,2]
[322099278,1712767832436,-171.75,0.00019762,2]
[322099279,1712767832449,-167.49,0.00019948,2]
[322099280,1712767832459,-70.55503807,0.0002,3]
[322099281,1712767832470,-280.83854349,0.0002,3]
[322099282,1712767832482,-648.81760442,0.0002,3]
[322099283,1712767832491,-410.7703047,0.00020009,2]
[322099284,1712767832503,-834.26875927,0.00020009,2]
[322099285,1712767832540,-9.36482564,0.00020009,2]
[322099286,1712767832550,-260.52629873,0.0002001,2]
[322099287,1712767832560,-223.75061608,0.00020011,2]
[322099288,1712767832616,-1209.0791968,0.00020011,2]
[322099289,1712767832626,-1792.5696,0.00020018,2]
[322099290,1712767832635,-3130.95049862,0.00020057,2]
[322099291,1712767832644,-150.0,0.00020082,2]
[322099292,1712767832654,-300.0,0.00020115,2]
[322099293,1712767832664,-150.0,0.00020115,2]
[322099294,1712767832674,-2239.87,0.00020115,2]
[322099295,1712767832683,-355.27,0.00020115,2]
[322099296,1712767832697,-206.73986699,0.00020116,2]
[322099297,1712767832706,-3056.89,0.00020116,2]
[322099298,1712767832715,-553.71,0.00020116,2]
[322099299,1712767832725,-205.16730609,0.00020117,2]
[322099300,1712767832735,-77179.69351241,0.00020118,2]
[322099301,1712767833309,-824.81260088,0.00020118,2]
[322099302,1712767833365,-12656.25940035,0.00020118,2]
[322099303,1712767833377,-130.3730982,0.00020118,2]
[322099304,1712767833386,-165.98,0.00020157,2]
[322099305,1712767833397,-499.99,0.0002024,2]
[322099306,1712767833407,-150.99,0.00020309,2]
[322099307,1712767833416,-3130.95049862,0.00020385,2]
[322099308,1712767833426,-12568.45381489,0.000205,2]
[322099310,1712767833435,-537.0,0.00020547,2]
[322099312,1712767833446,-549.0,0.00020547,2]
[322099314,1712767833455,-189.746976,0.00020548,2]
[322099316,1712767833463,-557.18,0.00020548,2]
[322099318,1712767833472,-1361.52171387,0.00020692,2]
[322099320,1712767833481,-9498.8627415,0.00020692,2]
[322099322,1712767833491,-1587.23104459,0.000207,2]
[322099324,1712767833500,-1587.23104459,0.000207,2]
[322099326,1712767833510,-1587.23104459,0.000207,2]
[322099328,1712767833519,-1587.23104459,0.000207,2]
[322099329,1712767833529,-1587.23104459,0.000207,2]
[322099330,1712767833538,-1587.23104459,0.000207,2]
[322099331,1712767833548,-1587.23104459,0.000207,2]
[322099332,1712767833558,-1587.23104459,0.000207,2]
[322099333,1712767833569,-1587.23104459,0.000207,2]
[322099334,1712767833578,-1587.23104459,0.000207,2]
[322099335,1712767833587,-1587.23104459,0.000207,2]
[322099336,1712767833596,-1587.23104459,0.000207,2]
[322099337,1712767833606,-150.0,0.00020708,2]
[322099338,1712767833614,-1587.23104459,0.00020778,2]
[322099339,1712767833624,-3130.95049862,0.00020788,2]
[322099340,1712767833634,-171.75,0.00020792,2]
[322099341,1712767833644,-500.0,0.00020832,2]
[322099342,1712767833654,-1587.23104459,0.0002086,2]
[322099343,1712767833665,-1587.23104459,0.00020888,2]
[322099344,1712767833675,-1587.23104459,0.00020889,2]
[322099345,1712767833684,-1587.23104459,0.00020889,2]
[322099346,1712767833696,-1587.23104459,0.0002089,2]
[322099347,1712767833707,-1587.23104459,0.0002089,2]
[322099348,1712767833716,-1587.23104459,0.0002089,2]
[322099349,1712767833725,-1587.23104459,0.0002089,2]
[322099350,1712767833735,-1587.23104459,0.0002089,2]
[322099351,1712767833745,-1587.23104459,0.0002089,2]
[322099352,1712767833754,-1587.23104459,0.0002089,2]
[322099353,1712767833764,-1587.23104459,0.0002089,2]
[322099354,1712767833773,-1587.23104459,0.0002089,2]
[322099355,1712767833782,-1587.23104459,0.0002089,2]
[322099356,1712767833792,-1587.23104459,0.0002089,2]
[322099357,1712767833801,-1587.23104459,0.0002089,2]
[322099358,1712767833816,-1587.23104459,0.0002089,2]
[322099359,1712767833826,-1587.23104459,0.0002089,2]
[322099360,1712767833835,-1587.23104459,0.0002089,2]
[322099361,1712767833845,-1587.23104459,0.0002089,2]
[322099362,1712767833855,-1041.87708972,0.0002089,2]
[322099363,1712767833972,-545.35395487,0.0002089,2]
[322099364,1712767833982,-1587.23104459,0.0002089,2]
[322099365,1712767833991,-781.29157627,0.0002089,2]
[322099369,1712767837353,-805.93946832,0.0002089,2]
[322099370,1712767837362,-1065.62973168,0.0002089,2]
[322099371,1712767837745,-521.60131291,0.0002089,2]
[322099372,1712767837755,-899.11492994,0.0002089,2]
[322099373,1712767837768,-688.11611465,0.0002089,2]
[322099374,1712767837778,-1587.23104459,0.0002089,2]
[322099375,1712767837787,-1587.23104459,0.0002089,2]
[322099376,1712767837797,-1587.23104459,0.0002089,2]
[322099377,1712767837809,-1587.23104459,0.0002089,2]
[322099378,1712767837821,-1112.95970699,0.0002089,2]
[322099379,1712767837834,-474.2713376,0.0002089,2]
[322099380,1712767837843,-1587.23104459,0.0002089,2]
[322099381,1712767837853,-1587.23104459,0.0002089,2]
[322099382,1712767837862,-1587.23104459,0.0002089,2]
[322099383,1712767837872,-1587.23104459,0.0002089,2]
[322099384,1712767837882,-1587.23104459,0.0002089,2]
[322099385,1712767837892,-1587.23104459,0.0002089,2]
[322099386,1712767837902,-1587.23104459,0.0002089,2]
[322099387,1712767837912,-155.68969577,0.00020898,2]
[322099388,1712767837922,-155.62920748,0.00020898,2]
[322099389,1712767837933,-155.0,0.00020898,2]
[322099390,1712767837944,-155.0,0.00020898,2]
[322099391,1712767837954,-283.49472265,0.00020898,2]
[322099392,1712767837966,-201.84235747,0.00020898,2]
[322099393,1712767837976,-362.22013382,0.00020898,2]
[322099394,1712767837987,-217.36336343,0.00020898,2]
[322099395,1712767837999,-275.50613448,0.00020898,2]
[322099396,1712767838009,-1045.19799734,0.00020898,2]
[322099397,1712767838019,-155.92538713,0.00020899,2]
[322099398,1712767838028,-5533.20289702,0.00020899,2]
[322099399,1712767838039,-152.59899876,0.00020899,2]
[322099400,1712767838050,-12958.8268,0.000209,2]
[322099401,1712767838059,-100000.0,0.000209,2]
[322099402,1712767838069,-500.0,0.000209,2]
[322099403,1712767838078,-67949.9912,0.000209,2]
[322099404,1712767838087,-185.68441501,0.000209,2]
[322099405,1712767838097,-2436.37,0.0002098,3]
[322099406,1712767838106,-2308.06704412,0.00020998,2]
[322099407,1712767838115,-3742.40252275,0.00020998,2]
[322099408,1712767838130,-1089110.41320555,0.00020999,4]
[322099409,1712767838140,-1000.0,0.00020999,2]
[322099410,1712767838150,-198.55405159,0.00021,2]
[322099411,1712767838159,-6082614.7604559,0.00021,2]
[322099412,1712767838169,-364.99752473,0.00021,2]
[322099413,1712767838380,-714.96210186,0.00021,2]
[322099415,1712767838394,-155.0,0.00021,2]
[322099417,1712767838405,-2000.0,0.00021,2]
[322099419,1712767838415,-200.0,0.00021,2]
[322099421,1712767838426,-481.4,0.00021,2]
[322099423,1712767838437,-730.67,0.00021,2]
[322099425,1712767838451,-2000.0,0.00021,2]
[322099427,1712767838462,-200.0,0.00021,2]
[322099430,1712767838472,-250.0,0.00021,3]
[322099432,1712767838483,-2395.21073,0.00021,2]
[322099434,1712767838492,-2000.0,0.0002121,2]
[322099436,1712767838505,-200.0,0.0002121,2]
[322099438,1712767838515,-3130.95049862,0.00021317,2]
[322099440,1712767838524,-189.746976,0.0002137,2]
[322099442,1712767838534,-1951.3,0.0002137,2]
[322099443,1712767838543,-3130.95049863,0.00021618,2]
[322099444,1712767838553,-1361.52171383,0.00021702,2]
[322099445,1712767838562,-9498.86274145,0.00021702,2]
[322099446,1712767838571,-537.0,0.0002178,2]
[322099447,1712767838581,-549.0,0.0002178,2]
[322099448,1712767838590,-156.94,0.00021786,2]
[322099449,1712767838599,-790.9808523,0.000219,2]
[322099450,1712767838608,-250.0,0.00021918,2]
[322099451,1712767838617,-250.0,0.00021918,2]
[322099452,1712767838627,-8306.57,0.00021918,2]
[322099453,1712767838637,-500.72724174,0.00021999,2]
[322099454,1712767838647,-783.68958544,0.00022,2]
[322099455,1712767838656,-562.65039884,0.00022,2]
[322099456,1712767838667,-952.17194491,0.00022,2]
[322099457,1712767838677,-40051.28369038,0.00022,2]
[322099458,1712767838686,-282.16237035,0.00022,2]
[322099459,1712767838696,-1000.0,0.00022174,2]
[322099460,1712767838706,-20000.0,0.00022186,2]
[322099461,1712767838715,-6152.0,0.00022186,2]
[322099462,1712767838724,-189.746976,0.00022192,2]
[322099463,1712767838734,-167.49,0.00022212,2]
[322099464,1712767838743,-2018.0,0.000223,2]
[322099465,1712767838753,-180.0,0.00022301,2]
[322099466,1712767838762,-1964.45,0.00022348,2]
[322099467,1712767838771,-800.0,0.00022548,2]
[322099468,1712767838782,-156.94,0.00022557,2]
[322099469,1712767838793,-166.15,0.00022577,2]
[322099470,1712767838803,-525.0,0.000226,2]
[322099471,1712767838813,-1361.52171383,0.00022712,2]
[322099472,1712767838823,-9498.86274145,0.00022712,2]
[322099473,1712767838837,-62089.45757243,0.00022738,2]
[322099474,1712767838847,-166.99,0.00022873,2]
[322099475,1712767838857,-189.122,0.0002295,2]
[322099476,1712767838866,-307.07035254,0.00023,2]
[322099477,1712767838877,-155.97526314,0.00023,2]
[322099478,1712767838887,-155.0,0.00023,2]
[322099479,1712767838897,-300.0,0.00023,3]
[322099480,1712767838907,-537.0,0.00023013,2]
[322099481,1712767838917,-549.0,0.00023013,2]
[322099482,1712767838926,-189.746976,0.00023014,2]
[322099483,1712767838936,-1000.0,0.00023039,2]
[322099484,1712767838947,-1000.0,0.00023288,2]
[322099485,1712767838957,-1000.0,0.00023288,2]
[322099486,1712767838966,-1000.0,0.00023288,2]
[322099487,1712767838976,-1000.0,0.00023288,2]
[322099488,1712767838984,-1000.0,0.00023288,2]
[322099489,1712767838994,-1000.0,0.00023288,2]
[322099490,1712767839004,-1000.0,0.00023288,2]
[322099491,1712767839013,-1000.0,0.00023288,2]
[322099492,1712767839023,-1000.0,0.00023288,2]
[322099493,1712767839032,-1000.0,0.00023288,2]
[322099494,1712767839041,-1000.0,0.00023288,2]
[322099495,1712767839050,-1000.0,0.00023288,2]
[322099496,1712767839060,-1000.0,0.00023288,2]
[322099497,1712767839069,-1000.0,0.00023288,2]
[322099498,1712767839079,-1000.0,0.00023288,2]
[322099499,1712767839090,-1000.0,0.00023288,2]
[322099500,1712767839100,-248.0,0.00023288,2]
[322099501,1712767839110,-156.94,0.00023327,2]
[322099502,1712767839120,-5000.0,0.000235,2]
[322099503,1712767839129,-6284.69721504,0.000235,2]
[322099504,1712767839139,-481.4,0.000236,2]
[322099505,1712767839149,-730.67,0.000236,2]
[322099506,1712767839159,-37351.37057872,0.000237,2]
[322099507,1712767839168,-1361.52171383,0.00023722,2]
[322099508,1712767839177,-9498.86274145,0.00023722,2]
[322099509,1712767839187,-13872.0,0.00023731,2]
[322099510,1712767839198,-200.0,0.00023775,2]
[322099511,1712767839208,-189.746976,0.00023836,2]
[322099512,1712767839217,-661.0,0.00023867,2]
[322099513,1712767839227,-1002.7971,0.00023999,2]
[322099514,1712767839237,-454.58628101,0.00024,2]
[322099515,1712767839246,-224.62727988,0.00024,2]
[322099516,1712767839256,-156.94,0.00024098,2]
[322099517,1712767839265,-5226.05,0.00024174,2]
[322099518,1712767839275,-537.0,0.00024246,2]
[322099519,1712767839284,-549.0,0.00024246,2]
[322099520,1712767839293,-167.49,0.00024476,2]
[322099521,1712767839302,-1000.0,0.00024638,2]
[322099522,1712767839312,-189.746976,0.00024658,2]
[322099523,1712767839322,-149089.15696195,0.0002469,5]
[322099525,1712767839339,-1361.52171383,0.00024732,2]
[322099526,1712767839351,-9498.86274145,0.00024732,2]
[322099528,1712767839361,-2223.73711434,0.000248,2]
[322099530,1712767839370,-156.94,0.00024868,2]
[322099532,1712767839380,-2603.52703539,0.00025,2]
[322099534,1712767839389,-221.089637,0.00025,2]
[322099536,1712767839399,-2844.15403432,0.00025,2]
[322099537,1712767839408,-6256.91811999,0.00025,2]
[322099538,1712767839418,-155.0,0.00025,2]
[322099539,1712767839428,-500.0,0.00025,2]
[322099540,1712767839438,-350.0,0.00025,3]
[322099541,1712767839449,-1964.45,0.00025088,2]
[322099542,1712767839459,-16142.93927548,0.000251,2]
[322099543,1712767839468,-3163.8129262,0.000251,2]
[322099544,1712767839478,-200.0,0.00025246,2]
[322099545,1712767839489,-1000.0,0.00025246,2]
[322099546,1712767839498,-500.0,0.00025246,2]
[322099547,1712767839508,-537.0,0.00025479,2]
[322099548,1712767839518,-550.0,0.00025479,2]
[322099549,1712767839527,-189.746976,0.00025479,2]
[322099550,1712767839537,-156.94,0.00025639,2]
[322099551,1712767839546,-1361.52171383,0.00025743,2]
[322099552,1712767839556,-9498.86274145,0.00025743,2]
[322099553,1712767839566,-500000.0,0.00026,2]
[322099554,1712767839576,-4228.82111769,0.00026,2]
[322099555,1712767839585,-2395.21074,0.00026,2]
[322099556,1712767839595,-152.59899875,0.00026221,2]
[322099557,1712767839605,-60323.67534502,0.000263,2]
[322099558,1712767839614,-189.746976,0.00026301,2]
[322099559,1712767839625,-25676.51033638,0.000264,2]
[322099560,1712767839636,-156.94,0.00026409,2]
[322099561,1712767839646,-730.67,0.000265,2]
[322099562,1712767839655,-481.4,0.000265,2]
[322099563,1712767839666,-537.0,0.00026712,2]
[322099564,1712767839676,-167.49,0.0002674,2]
[322099565,1712767839686,-1361.52171383,0.00026753,2]
[322099566,1712767839697,-9498.86274145,0.00026753,2]
[322099567,1712767839706,-155.05767173,0.00027,2]
[322099568,1712767839716,-1000.0,0.00027,2]
[322099569,1712767839725,-3860.46774035,0.00027,2]
[322099570,1712767839736,-400.0,0.00027,3]
[322099571,1712767839745,-1000.0,0.00027102,2]
[322099572,1712767839755,-189.746976,0.00027123,2]
[322099573,1712767839764,-1108.11623479,0.00027397,2]
[322099574,1712767839774,-293.81,0.00027397,2]
[322099575,1712767839784,-151.22,0.00027397,2]
[322099576,1712767839794,-151.55,0.00027397,2]
[322099577,1712767839804,-175.21,0.00027397,2]
[322099578,1712767839815,-259.8,0.00027397,2]
[322099579,1712767839827,-5300.14755709,0.000274,2]
[322099580,1712767839837,-5820.06,0.000274,2]
[322099581,1712767839847,-5820.06,0.000274,2]
[322099582,1712767839858,-5820.06,0.000274,2]
[322099583,1712767839871,-5820.06,0.000274,2]
[322099584,1712767839881,-5820.06,0.000274,2]
[322099585,1712767839891,-1000.0,0.00027453,8]
[322099586,1712767839901,-162.22,0.00027471,2]
[322099587,1712767839911,-1361.52171383,0.00027763,2]
[322099588,1712767839921,-9498.86274145,0.00027763,2]
[322099589,1712767839930,-150.0,0.0002793,2]
[322099590,1712767839940,-537.0,0.00027945,2]
[322099591,1712767839951,-189.746976,0.00027945,14]
[322099592,1712767839960,-23535.94437515,0.00028,2]
[322099593,1712767839970,-470.7188875,0.00028,2]
[322099594,1712767839980,-150.0,0.00028335,2]
[322099595,1712767839989,-150.0,0.00028387,2]
[322099596,1712767839999,-150.0,0.00028394,2]
[322099597,1712767840009,-150.0,0.00028396,2]
[322099598,1712767840020,-150.0,0.0002847,2]
[322099599,1712767840030,-150.0,0.00028501,2]
[322099600,1712767840039,-1500.0,0.00028575,2]
[322099601,1712767840049,-150.0,0.00028611,2]
[322099602,1712767840060,-150.0,0.00028653,2]
[322099603,1712767840070,-150.0,0.00028705,2]
[322099604,1712767840079,-1361.52171383,0.00028773,2]
[322099605,1712767840089,-9498.86274145,0.00028773,2]
[322099606,1712767840100,-150.0,0.00028798,2]
[322099607,1712767840111,-150.0,0.00028811,2]
[322099608,1712767840120,-150.0,0.00028834,2]
[322099609,1712767840130,-150.0,0.00028855,2]
[322099610,1712767840140,-150.0,0.00028906,2]
[322099611,1712767840150,-150.0,0.00028926,2]
[322099612,1712767840159,-150.0,0.00028947,2]
[322099613,1712767840169,-6744.92204359,0.00029,2]
[322099614,1712767840179,-1000.0,0.00029,2]
[322099615,1712767840189,-450.0,0.00029,3]
[322099616,1712767840199,-150.87,0.00029,2]
[322099617,1712767840209,-150.87,0.00029,2]
[322099618,1712767840219,-150.87,0.00029,2]
[322099619,1712767840229,-150.87,0.00029,2]
[322099620,1712767840239,-150.87,0.00029,2]
[322099621,1712767840249,-150.87,0.00029,2]
[322099622,1712767840258,-150.87,0.00029,2]
[322099623,1712767840268,-150.87,0.00029,2]
[322099624,1712767840278,-150.87,0.00029,2]
[322099625,1712767840287,-150.87,0.00029,2]
[322099626,1712767840297,-150.87,0.00029,2]
[322099627,1712767840307,-150.87,0.00029,2]
[322099628,1712767840318,-150.87,0.00029,2]
[322099629,1712767840328,-150.87,0.00029,2]
[322099630,1712767840338,-150.87,0.00029,2]
[322099631,1712767840349,-150.87,0.00029,2]
[322099632,1712767840359,-150.87,0.00029,2]
[322099633,1712767840369,-150.87,0.00029,2]
[322099634,1712767840379,-150.87,0.00029,2]
[322099635,1712767840389,-150.87,0.00029,2]
[322099636,1712767840398,-150.87,0.00029,2]
[322099637,1712767840408,-150.87,0.00029,2]
[322099638,1712767840418,-150.87,0.00029,2]
[322099639,1712767840428,-150.87,0.00029,2]